[Event "34th GER-ch Seniors-65 2022"]
[Site "Magdeburg"]
[Date "2022.08.16"]
[Round "5.2"]
[White "Braun, Gottfried"]
[Black "Klundt, Klaus"]
[Result "0-1"]
[ECO "B22"]
[WhiteElo "2143"]
[BlackElo "2288"]
[Annotator "TA"]
[PlyCount "62"]
[EventDate "2022.08.12"]
[EventType "swiss"]
[EventCountry "GER"]
[SourceTitle "playchess.com"]
[Source "ChessBase"]
[SourceQuality "1"]
[TimeControl "40/5400+30:1800+30"]

{[%evp 20,62,0,-7,2,-10,0,0,0,0,0,0,0,2,3,-12,0,-32,-5,-29,45,-100,-28,-43,-32,-71,-63,-54,-32,-89,-40,-51,-39,-27,-20,-109,-42,-115,-114,-409,-403,-400,-393,-765,-757]} 1. e4 {[%emt 0:00:02][%cal Be2e4,Be4e5][%mdl 32]} c5 {[%emt 0:00:12]} 2. c3 {[%emt 0:00:07]} Nf6 {[%emt 0:00:10]} 3. e5 {[%emt 0:00:05]} Nd5 {[%emt 0:00:03]} 4. d4 {[%emt 0:00:08]} cxd4 {[%emt 0:00:10]} 5. Nf3 {[%emt 0:00:12]} Nc6 {[%emt 0:00:15]} 6. cxd4 {[%emt 0:00:09]} d6 {[%emt 0:00:16]} 7. Bc4 {[%emt 0:00:14]} dxe5 {[%emt 0:00:18]} 8. Nxe5 {[%emt 0:00:17]} e6 {[%emt 0:00:15]} 9. Nf3 {[%emt 0:00:22]} Be7 {[%emt 0:00:38]} 10. O-O {[%emt 0:00:14]} O-O {[%emt 0:00:30]} 11. Nc3 {[%emt 0:00:33]} a6 {[%emt 0:01:40] [#] B22: Sicilian: 2 c3.} 12. Re1 $146 {[%emt 0:01:52]} ({Predecessor:} 12. Qe2 b5 13. Bd3 Nxc3 14. bxc3 Bb7 15. Qe4 g6 16. Bh6 Re8 17. Rfe1 Qc7 18. Qg4 Bf6 19. Ng5 {1-0 (28) Bortnyk,O (2598)-Savchenko,B (2564) Chess.com INT 2020}) 12... Nxc3 {[%emt 0:03:25]} 13. bxc3 {[%emt 0:00:10]} b5 {[%emt 0:00:02] The position is equal.} 14. Bd3 {[%emt 0:02:10]} Bb7 {[%emt 0:00:13]} 15. Qc2 {[%emt 0:01:19]} g6 {[%emt 0:02:07]} 16. Bh6 {[%emt 0:00:51]} Re8 {[%emt 0:00:03]} 17. Rad1 {[%emt 0:02:49]} Rc8 {[%emt 0:01:53][%cal Oc6b4] aiming for ...Nb4!} 18. Qe2 {[%emt 0:03:11]} Bf6 {[%emt 0:06:05]} 19. Ne5 {[%emt 0:13:39]} Ne7 {[%emt 0:13:14] [#]} (19... Bh8 $11) 20. Ng4 {[%emt 0:18:00]} (20. Nxf7 $1 $14 {keeps the upper hand.} Qd5 21. Qg4 $1) 20... Bh8 {[%emt 0:01:51]} (20... Nd5 $17 21. Qd2 Rxc3 22. Nxf6+ Qxf6) 21. Bd2 {[%emt 0:08:50][%cal Oa2a4]} Nf5 {[%emt 0:05:45]} 22. Qf1 {[%emt 0:04:52]} Bd5 {[%emt 0:05:51]} 23. Ra1 {[%emt 0:02:36]} Bc4 {[%emt 0:02:36]} 24. a4 {[%emt 0:05:12] [#]} (24. Ne3 $15) 24... Bxd3 {[%emt 0:04:50]} ({Better is} 24... e5 $1 $17 25. Ne3 (25. axb5 axb5 26. Ne3 exd4 $17) 25... exd4 26. Nxf5 gxf5 27. Rxe8+ Qxe8 28. cxd4 Bxd4) 25. Qxd3 $15 {[%emt 0:00:11]} b4 $1 {[%emt 0:00:03]} 26. cxb4 {[%emt 0:02:09]} Bxd4 {[%emt 0:00:57]} 27. Ra3 {[%emt 0:01:08]} (27. Rad1 $11 {keeps the balance.}) 27... Qb6 {[%emt 0:08:46]} (27... h5 $17 28. Nh6+ Nxh6 29. Bxh6 Qb6) 28. Rf1 {[%emt 0:05:05]} (28. a5 $15 Qd6 29. Rb3) 28... Red8 $17 {[%emt 0:00:53] Black is more active.} 29. Qe4 $2 {[%emt 0:01:50][%mdl 8192] [#]} (29. a5 $17 Qb7 30. Qf3) 29... Bxf2+ $1 $19 {[%emt 0:01:42][%mdl 512]} 30. Nxf2 {[%emt 0:00:57] Rc3 is the strong threat.} Rxd2 {[%emt 0:00:09]} 31. Raa1 $2 {[%emt 0:01:23]} (31. a5 Qa7 32. Qe1) 31... Rcc2 {[%emt 0:03:37] Weighted Error Value: White=0.77/Black=0.22 (precise)} 0-1

[Event "34th GER-ch Seniors-65 2022"]
[Site "Magdeburg"]
[Date "2022.08.16"]
[Round "5.7"]
[White "Rahls, Peter"]
[Black "Gries, Volker"]
[Result "1-0"]
[ECO "B09"]
[WhiteElo "2223"]
[BlackElo "2050"]
[Annotator "TA"]
[PlyCount "77"]
[EventDate "2022.08.12"]
[EventType "swiss"]
[EventCountry "GER"]
[SourceTitle "playchess.com"]
[Source "ChessBase"]
[SourceQuality "1"]
[TimeControl "40/5400+30:1800+30"]

{[%evp 10,77,37,45,55,50,55,48,83,53,60,-19,-18,-14,-16,-21,51,0,104,-13,55,60,47,0,0,0,35,30,46,54,147,132,172,161,162,18,89,72,96,84,132,132,129,91,92,85,110,5,6,11,5,-8,-8,-8,7,0,4,7,29964,29970,29970,29971,29970,29971,29970,29972,29972,29972,29984,29985]} 1. e4 {[%emt 0:00:06]} d6 {[%emt 0:00:10]} 2. d4 {[%emt 0:00:11]} Nf6 {[%emt 0:00:05]} 3. Nc3 {[%emt 0:00:14]} g6 {[%emt 0:00:05]} 4. f4 {[%emt 0:00:17]} Bg7 {[%emt 0:00:19]} 5. Nf3 {[%emt 0:00:17]} O-O {[%emt 0:01:13]} 6. a3 {[%emt 0:00:56]} Bg4 {[%emt 0:03:16] B09: Pirc Defence: Austrian Attack.} 7. h3 {[%emt 0:00:42]} Bxf3 {[%emt 0:00:22]} 8. Qxf3 {[%emt 0:00:15] Black must now prevent e5.} Nc6 {[%emt 0:01:18] White is slightly better.} 9. Be3 {[%emt 0:00:47]} e5 {[%emt 0:07:13]} 10. fxe5 {[%emt 0:11:51]} (10. dxe5 $1 $14 dxe5 11. f5) 10... dxe5 $11 {[%emt 0:00:13]} 11. d5 {[%emt 0:00:23]} Nd4 {[%emt 0:10:41]} 12. Qf2 {[%emt 0:00:22] [#]} Nd7 $146 {[%emt 0:04:05]} (12... c6 $11) ({Predecessor:} 12... Re8 13. Bd3 Nd7 14. O-O-O Qf6 15. Qd2 c5 16. dxc6 bxc6 17. Bc4 Nb6 18. Ba2 Rad8 {1-0 (29) Malmdin,N (2306)-Biller,H (2103) Rogaska Slatina 2012}) 13. g4 $14 {[%emt 0:02:52]} f5 {[%emt 0:09:18]} (13... c5 $11) 14. O-O-O {[%emt 0:10:40]} ({Better is} 14. gxf5 $16 gxf5 15. O-O-O) 14... fxe4 {[%emt 0:13:55]} (14... f4 $1 $11 15. Bd2 c6) 15. Qg2 {[%emt 0:00:53]} Rf3 {[%emt 0:01:54]} 16. Bxd4 {[%emt 0:00:40]} (16. Qd2 $1 $14) 16... exd4 $11 {[%emt 0:00:06]} 17. Nxe4 {[%emt 0:00:39][%cal Bc3e4,Be4c5,Bc5e6][%mdl 32]} Rf4 {[%emt 0:02:25]} 18. Bd3 {[%emt 0:02:20]} Ne5 {[%emt 0:00:47]} 19. Nc5 {[%emt 0:01:01] And now Ne6 would win.} Qe7 {[%emt 0:18:28]} (19... Qd6 $14 20. Ne6 Rf3) 20. Ne6 $16 {[%emt 0:02:22]} Rf7 {[%emt 0:01:50]} 21. h4 {[%emt 0:04:49]} c6 {[%emt 0:00:46]} 22. g5 {[%emt 0:00:52]} ({White should try} 22. Kb1 $18) 22... cxd5 {[%emt 0:00:46]} (22... Nxd3+ $11 {remains equal.} 23. Rxd3 Rf5) 23. Qxd5 {[%emt 0:00:25]} Nxd3+ {[%emt 0:04:17]} 24. Rxd3 {[%emt 0:00:58]} Qd7 {[%emt 0:00:16]} (24... Re8 $142 25. Nxd4 (25. Nxg7 Rd8 $14) 25... Kh8) 25. Qxd7 {[%emt 0:03:02] White is much more active.} Rxd7 {[%emt 0:00:06]} 26. Rhd1 {[%emt 0:00:30]} Be5 {[%emt 0:03:56]} 27. Nxd4 {[%emt 0:01:21]} Rad8 {[%emt 0:04:41][%cal Rd7d4]} 28. Nf3 {[%emt 0:01:03]} (28. c3 $16) 28... Bf4+ $11 {[%emt 0:00:50]} 29. Kb1 {[%emt 0:00:33]} Rxd3 {[%emt 0:00:18]} 30. Rxd3 {[%emt 0:00:32]} Rxd3 {[%emt 0:00:27]} 31. cxd3 {[%emt 0:00:03][%mdl 4096] Endgame KB-KN} h6 {[%emt 0:00:09]} 32. Kc2 {[%emt 0:04:30]} hxg5 {[%emt 0:00:23]} 33. Nxg5 {[%emt 0:05:12]} Bxg5 $2 {[%emt 0:05:16][%mdl 8192] [#] Loses the game.} (33... Bg3 $11) 34. hxg5 {[%emt 0:00:21] KP-KP. White mates.} Kf7 {[%emt 0:00:02]} 35. Kc3 {[%emt 0:00:35]} Ke6 {[%emt 0:00:04]} 36. Kd4 {[%emt 0:00:46]} Kf5 {[%emt 0:00:05]} 37. Kd5 {[%emt 0:00:26]} Kxg5 {[%emt 0:00:10]} 38. Ke5 {[%emt 0:00:21]} Kh5 {[%emt 0:01:41]} 39. d4 {[%emt 0:00:20] Weighted Error Value: White=0.32/Black=0.47} 1-0

[Event "34th GER-ch Seniors-65 2022"]
[Site "Magdeburg"]
[Date "2022.08.16"]
[Round "5.8"]
[White "Kurka, Dieter"]
[Black "Glienke, Manfred"]
[Result "1/2-1/2"]
[WhiteElo "2005"]
[BlackElo "2205"]
[Annotator "TA"]
[PlyCount "29"]
[EventDate "2022.08.12"]
[EventType "swiss"]
[EventCountry "GER"]
[SourceTitle "playchess.com"]
[Source "ChessBase"]
[SourceQuality "1"]
[TimeControl "40/5400+30:1800+30"]

{[%evp 9,14,-15,1,-8,28,24,23]} 1. d4 {[%emt 0:00:05]} d5 {[%emt 0:00:07]} 2. Bf4 {[%emt 0:00:08]} Nf6 {[%emt 0:00:41]} 3. e3 {[%emt 0:00:08]} e6 {[%emt 0:00:12]} 4. Nd2 {[%emt 0:00:20]} Bd6 {[%emt 0:01:00]} 5. Bg3 {[%emt 0:00:09]} Nbd7 {[%emt 0:00:42]} 6. Ngf3 {[%emt 0:00:16] D00: 1 d4 d5: Unusual lines.} Qe7 {[%emt 0:01:57]} 7. Ne5 {[%emt 0:00:12]} O-O {[%emt 0:07:11] [#] An uneventful encounter.} {Predecessor:} 8. Bd3 $146 c5 9. c3 g6 10. h4 Nh5 11. Bh2 f6 12. Nxd7 Bxd7 13. g4 Ng7 14. h5 Bxh2 15. Rxh2 {½-½ (50) Kamsky,G (2665)-Tica,S (2402) Chess.com INT 2020} 1/2-1/2

[Event "34th GER-ch Seniors-65 2022"]
[Site "Magdeburg"]
[Date "2022.08.16"]
[Round "5.9"]
[White "Gruzmann, Boris"]
[Black "Pueschel, Werner"]
[Result "1/2-1/2"]
[ECO "B42"]
[WhiteElo "2173"]
[BlackElo "2034"]
[Annotator "TA"]
[PlyCount "102"]
[EventDate "2022.08.12"]
[EventType "swiss"]
[EventCountry "GER"]
[SourceTitle "playchess.com"]
[Source "ChessBase"]
[SourceQuality "1"]
[TimeControl "40/5400+30:1800+30"]

{[%evp 12,102,45,0,27,0,14,0,20,8,40,3,1,0,0,0,0,0,0,-15,51,41,79,27,45,58,86,40,27,47,75,73,92,94,95,86,88,19,26,2,0,0,68,61,66,74,87,87,107,109,195,195,203,196,196,124,168,125,224,62,91,0,87,0,0,0,0,0,0,0,0,0,8,0,0,-186,-186,-153,0,0,0,0,0,0,0,0,0,0,0,0,0,0,0]} 1. e4 {[%emt 0:00:12]} c5 {[%emt 0:01:11]} 2. Nf3 {[%emt 0:00:12]} e6 {[%emt 0:00:05]} 3. d4 {[%emt 0:00:11]} cxd4 {[%emt 0:00:04]} 4. Nxd4 {[%emt 0:00:11]} a6 {[%emt 0:00:02]} 5. Bd3 {[%emt 0:00:47]} Nf6 {[%emt 0:00:37]} 6. O-O {[%emt 0:00:51]} Qc7 {[%emt 0:00:11]} 7. Kh1 {[%emt 0:05:22]} Nc6 {[%emt 0:00:49] B42: Sicilian: Kan Variation: 5 Bd3.} 8. Nb3 {[%emt 0:02:54] [#]} b6 $146 {[%emt 0:00:30]} ({Predecessor:} 8... d6 9. a4 g6 10. f4 Bg7 11. Nc3 O-O 12. a5 Nd7 13. Qe1 Nc5 14. Qh4 Nxd3 15. cxd3 {1-0 (34) Saulina,V (2199)-Ptacnikova,L (2173) Chess.com INT 2022}) 9. Nc3 {[%emt 0:01:11]} Bb7 {[%emt 0:01:28]} 10. f4 {[%emt 0:01:22]} Nb4 {[%emt 0:01:19]} 11. Qe2 {[%emt 0:05:59]} Be7 {[%emt 0:03:45]} 12. Bd2 {[%emt 0:03:23]} Nxd3 {[%emt 0:06:22]} 13. cxd3 {[%emt 0:00:13]} O-O {[%emt 0:01:54]} 14. Rac1 {[%emt 0:01:03]} Qd8 {[%emt 0:00:40]} 15. f5 {[%emt 0:07:45]} exf5 {[%emt 0:05:57]} (15... e5 $11) 16. Rxf5 $14 {[%emt 0:07:44]} g6 {[%emt 0:01:58]} 17. Rf2 {[%emt 0:01:45]} (17. Rff1 $16) 17... Nh5 $11 {[%emt 0:00:34]} 18. Rcf1 {[%emt 0:07:53]} Bg5 {[%emt 0:02:03] Against Bh6} 19. Nd4 {[%emt 0:02:10]} (19. Bxg5 $16 Qxg5 20. g4) 19... Bxd2 $14 {[%emt 0:08:34]} 20. Qxd2 {[%emt 0:00:09]} Qh4 {[%emt 0:00:18]} 21. Kg1 {[%emt 0:00:11]} Rae8 {[%emt 0:03:55][%cal Od7d5]} 22. Qh6 {[%emt 0:03:32][%cal Og2g4] Threatens to win with g4!} Qe7 {[%emt 0:05:22]} 23. g4 {[%emt 0:03:15]} Ng7 {[%emt 0:00:32]} 24. Rf6 {[%emt 0:01:00] White is much more active. The black rooks are badly placed.} ({Better is} 24. Nc2 $1 $16) 24... Qc5 $11 {[%emt 0:02:31]} 25. Nce2 {[%emt 0:03:40][%cal Ob2b4] Black must now prevent b4!} Ne6 {[%emt 0:11:16]} 26. Qe3 $36 {[%emt 0:01:52][%mdl 2048] Black is under pressure.} d5 {[%emt 0:03:11]} (26... a5 $11) 27. e5 $14 {[%emt 0:06:52]} Bc8 {[%emt 0:03:26]} 28. h3 {[%emt 0:09:59]} Bd7 {[%emt 0:10:12]} 29. a3 {[%emt 0:00:29]} a5 {[%emt 0:01:13]} 30. Rc1 {[%emt 0:01:13]} Nxd4 {[%emt 0:07:21]} 31. Rxc5 $18 {[%emt 0:01:08]} Nxe2+ {[%emt 0:00:04]} 32. Qxe2 {[%emt 0:00:21]} bxc5 {[%emt 0:00:08][%cal Bb6c5,Bc5c4][%mdl 32]} 33. Rd6 {[%emt 0:01:30]} (33. Ra6 $18) 33... Be6 $16 {[%emt 0:00:15]} 34. Qd2 {[%emt 0:01:35]} Ra8 {[%emt 0:00:37]} (34... Rb8 $16 35. Qxa5 Rxb2) 35. Rc6 $2 {[%emt 0:00:53]} (35. h4 $1 $18 {[%cal Rh4h5]}) 35... c4 $1 $14 {[%emt 0:00:22]} 36. Rc5 {[%emt 0:03:00]} ({White should play} 36. Rb6 $16) 36... a4 {[%emt 0:01:23]} (36... Rab8 $11) 37. Ra5 {[%emt 0:02:23]} (37. Rb5 $1 $16) 37... Rxa5 $11 {[%emt 0:00:18]} 38. Qxa5 {[%emt 0:00:09][%mdl 4096] Endgame KQ-KRB} Rb8 {[%emt 0:00:08]} 39. dxc4 {[%emt 0:00:41]} dxc4 {[%emt 0:00:10]} 40. Qxa4 {[%emt 0:04:23]} Rxb2 {[%emt 0:00:11]} 41. Qa5 {[%emt 0:36:54]} Rb3 {[%emt 0:30:37]} 42. Kh2 {[%emt 0:03:51]} c3 {[%emt 0:00:16]} 43. Qc5 $2 {[%emt 0:01:21] [#]} (43. Qd8+ $11 Kg7 44. Qf6+ Kg8 45. Qd8+ Kg7 46. Qf6+ Kg8 47. Qd8+) 43... Rb2+ $1 $19 {[%emt 0:00:17][%mdl 1024] Black has strong compensation.} 44. Kg3 {[%emt 0:00:14] [#]} c2 $2 {[%emt 0:00:21]} (44... Rb8 $1 $17 {Strongly threatening ...Rc8.} 45. a4 (45. Qxc3 $2 Rb3 $19) 45... Rc8) 45. Kf4 {[%emt 0:00:00] The position is equal.} h6 {[%emt 0:00:00]} 46. Qc3 {[%emt 0:00:00]} g5+ {[%emt 0:00:00]} 47. Ke4 {[%emt 0:00:00]} Rb3 {[%emt 0:00:00]} 48. Qxc2 {[%emt 0:00:00]} Rxa3 {[%emt 0:00:00]} 49. Qg2 {[%emt 0:00:00]} Ra4+ {[%emt 0:00:00]} 50. Ke3 {[%emt 0:00:00]} Kg7 {[%emt 0:00:00]} 51. Qf1 {[%emt 0:00:00]} Rc4 {[%emt 0:00:00] Quite a comeback for White.  Weighted Error Value: White=0.31/Black=0.21 (precise)} 1/2-1/2

[Event "34th GER-ch Seniors-65 2022"]
[Site "Magdeburg"]
[Date "2022.08.16"]
[Round "5.11"]
[White "Knaak, Joachim"]
[Black "Heid, Michael"]
[Result "1-0"]
[ECO "D18"]
[WhiteElo "2142"]
[BlackElo "1935"]
[Annotator "TA"]
[PlyCount "55"]
[EventDate "2022.08.12"]
[EventType "swiss"]
[EventCountry "GER"]
[SourceTitle "playchess.com"]
[Source "ChessBase"]
[SourceQuality "1"]
[TimeControl "40/5400+30:1800+30"]

{[%evp 15,55,22,40,21,24,8,26,10,10,7,15,4,26,24,40,0,95,95,98,75,94,95,93,93,93,93,97,93,154,153,148,150,143,139,245,152,259,127,308,304,587,564]} 1. d4 {[%emt 0:00:07]} c6 {[%emt 0:00:28]} 2. c4 {[%emt 0:00:22]} d5 {[%emt 0:00:03]} 3. Nf3 {[%emt 0:01:03]} Nf6 {[%emt 0:00:34]} 4. Nc3 {[%emt 0:00:24]} dxc4 {[%emt 0:02:28]} 5. a4 {[%emt 0:00:32]} Bf5 {[%emt 0:00:23]} 6. e3 {[%emt 0:00:23]} e6 {[%emt 0:00:08]} 7. Bxc4 {[%emt 0:00:18]} Nbd7 {[%emt 0:00:26]} 8. O-O {[%emt 0:00:43]} Bd6 {[%emt 0:05:02]} 9. h3 {[%emt 0:07:30] D18: Slav Defence: 5 a4 Bf5 6 e3.} O-O {[%emt 0:05:13]} 10. Qe2 {[%emt 0:12:17]} Ne4 {[%emt 0:04:06]} 11. Rd1 {[%emt 0:02:57] [#] White has an edge.} Qa5 $146 {[%emt 0:06:39]} ({Predecessor:} 11... Qe7 12. Bd3 Nxc3 13. bxc3 Bxd3 14. Rxd3 e5 15. e4 f5 16. Qa2+ Kh8 17. Bg5 Nf6 18. dxe5 Bxe5 19. exf5 Rae8 20. Re3 h6 21. Nxe5 {1-0 (21) Teijeiro Barros,A (2176)-Diaz Begonte,M (1903) Pontevedra 2004}) 12. Nxe4 {[%emt 0:10:43]} (12. Nh4 {keeps more tension.} Ndf6 13. Nxf5 exf5 14. Nxe4 Nxe4 15. f3) 12... Bxe4 {[%emt 0:00:12]} 13. Nd2 {[%emt 0:04:08]} Bg6 {[%emt 0:03:45]} (13... Bc2 $5 {[%cal Rc2d1]}) 14. e4 {[%emt 0:07:59][%cal Be3e4,Be4e5][%mdl 32]} Nb6 {[%emt 0:02:46]} 15. e5 {[%emt 0:08:20]} Bc7 {[%emt 0:12:47]} (15... Be7 $1 $11) 16. b4 $1 $36 {[%emt 0:01:13][%mdl 2048] White is on the roll.} Qxb4 {[%emt 0:00:03] White must now prevent ...Bc2.} 17. Ba3 {[%emt 0:00:23]} Qc3 {[%emt 0:00:02]} 18. Bxf8 {[%emt 0:00:41]} Rxf8 {[%emt 0:00:03] [#]} 19. a5 $1 {[%emt 0:02:00]} Nd5 {[%emt 0:02:29]} 20. Bxd5 {[%emt 0:02:02]} cxd5 {[%emt 0:00:51]} 21. a6 {[%emt 0:10:58]} bxa6 {[%emt 0:13:14]} (21... Qb4 $142) 22. Rac1 {[%emt 0:03:39]} Qa5 {[%emt 0:00:28]} 23. Nb3 {[%emt 0:03:41][%cal Bd2b3,Bb3c5,Bc5a6][%mdl 1056] White has strong compensation.} Qb6 {[%emt 0:00:20]} 24. Nc5 {[%emt 0:00:12] Strongly threatening Nd7.} Rd8 {[%emt 0:06:25] Against Nd7} (24... Re8 $16) 25. Qd2 {[%emt 0:01:58]} (25. Qxa6 $6 Qxa6 26. Nxa6 Bb6 $16) 25... a5 {[%emt 0:10:41] [#]} (25... Rc8 $16 26. Qe2 Bd8) 26. Rc3 {[%emt 0:01:26]} (26. Qc3 $1 $18 {and the rest is easy.}) 26... h6 $2 {[%emt 0:03:00]} (26... Re8 $16) 27. Rdc1 $18 {[%emt 0:01:16] Hoping for Rb3.} Qb4 {[%emt 0:03:55]} (27... a4 28. Qd1 (28. Nxa4 Qb4 $16) 28... Qb5 29. Nxe6 (29. Nxa4 Ba5 $16) (29. Qxa4 Qxa4 30. Nxa4 Ba5 $18) 29... fxe6) 28. Na6 {[%emt 0:00:37][%csl LRb4,LRc7] Weighted Error Value: White=0.16 (very precise) /Black=0.58} 1-0

[Event "34th GER-ch Seniors-65 2022"]
[Site "Magdeburg"]
[Date "2022.08.16"]
[Round "5.12"]
[White "Krueger, Erich"]
[Black "Ehlert, Horst"]
[Result "1/2-1/2"]
[ECO "D55"]
[WhiteElo "2135"]
[BlackElo "2011"]
[Annotator "TA"]
[PlyCount "118"]
[EventDate "2022.08.12"]
[EventType "swiss"]
[EventCountry "GER"]
[SourceTitle "playchess.com"]
[Source "ChessBase"]
[SourceQuality "1"]
[TimeControl "40/5400+30:1800+30"]

{[%evp 20,118,31,0,17,-31,43,26,41,47,45,39,58,31,48,21,25,19,69,78,79,76,72,79,70,75,88,51,57,9,25,0,34,0,0,0,19,-56,-19,-188,-101,-133,-157,-157,-146,-137,-137,-166,-168,-228,-234,-229,-227,-215,-219,-332,-297,-377,-368,-277,-246,-241,-60,-302,-268,-282,-283,-250,-77,-66,0,0,0,-203,-196,-553,37,37,164,154,2204,1613,4710,1471,5006,0,0,-29967,-787,-780,-757,-734,-677,-29936,-1028,-976,0,-6876,0,-849,-775]} 1. d4 {[%emt 0:00:08]} d5 {[%emt 0:00:33]} 2. c4 {[%emt 0:00:07]} e6 {[%emt 0:00:05]} 3. Nc3 {[%emt 0:00:08]} Nf6 {[%emt 0:00:07]} 4. cxd5 {[%emt 0:00:11]} exd5 {[%emt 0:00:10]} 5. Bg5 {[%emt 0:00:09]} Be7 {[%emt 0:00:40]} 6. e3 {[%emt 0:00:08]} O-O {[%emt 0:00:20]} 7. Bd3 {[%emt 0:00:38]} Nbd7 {[%emt 0:00:06]} 8. Qc2 {[%emt 0:01:41]} b6 {[%emt 0:03:09]} 9. Nf3 {[%emt 0:01:51]} Bb7 {[%emt 0:03:05]} 10. O-O {[%emt 0:02:16]} c5 {[%emt 0:05:46]} 11. Ne5 {[%emt 0:03:57]} h6 {[%emt 0:02:26] D55: Queen's Gambit Declined: 4 Bg5 Be7: Lines without ...h6 and 6...h6 7 Bxf6.} 12. Bh4 {[%emt 0:04:23]} (12. Bf4 $11) 12... a6 {[%emt 0:03:26]} ({Black should try} 12... Nxe5 $15 13. dxe5 Ng4) 13. f4 {[%emt 0:02:12]} c4 {[%emt 0:25:09] White has an edge.} 14. Bf5 {[%emt 0:01:21]} b5 {[%emt 0:02:56] [#]} 15. a3 $146 {[%emt 0:00:54]} ({Predecessor:} 15. g4 Nb6 16. g5 Nfd7 17. Bh7+ Kh8 18. Qf5 Nxe5 19. dxe5 Bc8 20. Qc2 hxg5 21. Bf2 gxf4 {1-0 (35) Popov,J (2078)-Ratic,Z (1873) Novi Sad 2017}) 15... Re8 {[%emt 0:11:33]} 16. Rf3 {[%emt 0:09:41]} Nf8 $1 {[%emt 0:07:31][%cal Of6e4]} 17. Rg3 {[%emt 0:07:13]} Ne4 $1 {[%emt 0:05:13]} 18. Bxe7 {[%emt 1:02:32]} (18. Bxe4 $2 Bxh4 19. Bf3 Bxg3 20. hxg3 f6 $19) 18... Qxe7 {[%emt 0:00:13]} (18... Rxe7 $11 19. Bxe4 (19. Nxe4 dxe4 20. Qd1 f6 $14) 19... dxe4) 19. Nxe4 $14 {[%emt 0:00:00] White is more active.} dxe4 {[%emt 0:00:25]} 20. Bxe4 {[%emt 0:00:00]} Bxe4 {[%emt 0:07:52]} 21. Qxe4 {[%emt 0:00:00]} f6 {[%emt 0:00:45]} 22. Qd5+ {[%emt 0:00:00]} Qe6 {[%emt 0:00:03]} 23. Qxe6+ {[%emt 0:00:00]} (23. Qb7 {is more complex.} Qe7 24. Qxe7 Rxe7 25. Nc6) 23... Nxe6 {[%emt 0:02:43]} 24. Ng4 {[%emt 0:00:00]} (24. Nd7 $14 Kf7 25. f5) 24... Kf7 {[%emt 0:00:41]} 25. Rd1 {[%emt 0:00:00]} a5 {[%emt 0:02:02]} 26. h4 {[%emt 0:00:00]} Nc7 {[%emt 0:03:06]} 27. Nf2 {[%emt 0:00:00]} Nd5 {[%emt 0:02:05]} 28. Re1 {[%emt 0:00:00]} ({Better is} 28. e4 $1 $11 Nxf4 29. Rf3) 28... Nxf4 {[%emt 0:01:14]} 29. e4 $2 {[%emt 0:00:00]} (29. Rf3 $11 {and White is okay.} Nd5 30. e4) 29... Ne6 {[%emt 0:01:18]} (29... Rad8 $1 $19 30. Rg4 g5 31. hxg5 fxg5) 30. Rd1 {[%emt 0:00:00]} Rad8 $1 {[%emt 0:00:08]} 31. d5 {[%emt 0:00:00]} Nc5 {[%emt 0:00:01]} 32. Re3 {[%emt 0:00:00]} Re5 {[%emt 0:01:15]} 33. Rde1 {[%emt 0:00:00]} Rde8 {[%emt 0:01:59]} 34. g4 {[%emt 0:00:00]} (34. g3 $142) 34... h5 $19 {[%emt 0:00:25]} 35. gxh5 {[%emt 0:00:00]} Rxh5 {[%emt 0:00:08]} 36. Kg2 {[%emt 0:00:00]} Rxh4 {[%emt 0:02:05]} 37. e5 {[%emt 0:00:00]} (37. Kf3 $142) 37... fxe5 {[%emt 0:02:40]} 38. Rxe5 {[%emt 0:00:00]} Rxe5 {[%emt 0:00:49]} 39. Rxe5 {[%emt 0:00:00][%mdl 4096] Endgame KRN-KRN} Kf6 {[%emt 0:02:59]} 40. Re8 {[%emt 0:00:00]} Nd3 $2 {[%emt 0:02:05]} ({Black should play} 40... Rd4 $19 41. Kf3 Rxd5) 41. d6 $2 {[%emt 0:20:05]} (41. Ne4+ $15 Kf5 42. Nd6+ Kg4 43. Nxb5) 41... Rd4 {[%emt 0:17:03]} (41... Nxb2 $2 42. Ne4+ Kf5 43. d7 Rxe4 44. Rf8+ Kg6 45. d8=Q $18) 42. Ne4+ {[%emt 0:00:00]} Kf5 {[%emt 0:04:35]} 43. Ng3+ {[%emt 0:00:00]} Kg6 $2 {[%emt 0:01:19]} (43... Kg4 $19 44. Rg8 g5) 44. Re6+ $17 {[%emt 0:00:00]} Kh7 {[%emt 0:00:03]} (44... Kf7 $15 45. Re7+ Kf8) 45. Kf3 $11 {[%emt 0:00:00]} Nxb2 {[%emt 0:00:22]} 46. Nf5 $2 {[%emt 0:00:00]} (46. Ne4 $1 $11 {and White stays safe.} Kg8 47. Ng5) 46... Rd3+ $19 {[%emt 0:02:33]} 47. Ke4 $2 {[%emt 0:00:00] [#]} (47. Re3) 47... Na4 $2 {[%emt 0:00:57]} (47... c3 $1 $19 {[%cal Rc3c2] ...c2 is the strong threat.} 48. Ne3 (48. Nd4 $2 Rxd4+ 49. Kxd4 c2 $19) 48... b4 49. axb4 axb4) 48. Re7 $14 {[%emt 0:00:00]} Nc5+ {[%emt 0:05:13]} (48... Kh8 $14) 49. Ke5 $18 {[%emt 0:00:00]} b4 $2 {[%emt 0:01:03]} (49... Rxa3 50. Rxg7+ Kh8 51. Rc7 Nd7+ 52. Rxd7 Ra2 53. Rg7 Re2+ 54. Kf6) (49... Rd1 $16) 50. Rxg7+ {[%emt 0:00:00]} (50. axb4 $142 axb4 51. Rxg7+ Kh8 52. Rc7) 50... Kh8 {[%emt 0:00:02]} 51. Rc7 {[%emt 0:00:00]} b3 {[%emt 0:01:12]} 52. Kf6 $2 {[%emt 0:00:00]} (52. Rxc5 $18 {Rc8+ would kill now.} Kh7 53. Rxc4) 52... b2 {[%emt 0:01:03] And now ...Ne4+ would win.} 53. Kg6 $2 {[%emt 0:00:00][%mdl 8192] [#]} (53. Rc8+ $11 Kh7 54. Rc7+ Kh8 55. Rc8+ Kh7 56. Rc7+ Kh8) 53... Rg3+ $3 {[%emt 0:00:35][%mdl 512]} 54. Nxg3 $19 {[%emt 0:00:01]} b1=Q+ {[%emt 0:00:01]} 55. Nf5 {[%emt 0:00:24]} Qg1+ {[%emt 0:00:15]} 56. Kh6 {[%emt 0:04:51]} Qh2+ {[%emt 0:00:03]} (56... Kg8 $142 57. Kh5 Ne6 58. Ne7+ Kf7 59. Nd5+ Nxc7 60. dxc7 Qc5 61. Kh4 c3 62. Nf4 Qxc7 63. Kg4 c2 64. Ne2 c1=Q 65. Nxc1 Qxc1 66. Kf3 Qe1 67. Kg2 Kf6 68. a4 Qe2+ 69. Kh1 Kf5 70. Kg1 Kf4 71. Kh1 Kg3 72. Kg1 Qg2#) 57. Kg6 {[%emt 0:00:25]} Qg1+ {[%emt 0:00:23]} 58. Kh6 {[%emt 0:00:21]} Qh2+ {[%emt 0:00:55]} 59. Kg6 {[%emt 0:00:10][%cal Rc7c8] The board is on fire.} Qg2+ {[%emt 0:03:07][%mdl 32768] Weighted Error Value: White=0.89/Black=0.91. An unexpected result.} 1/2-1/2